[Event "IIFL Wealth  4th Mumbai Junior U-13"]
[Site "Mumbai"]
[Date "2019.01.02"]
[Round "4"]
[White "Arhan Chethan Anand"]
[Black "Shravan Swaminathan"]
[Result "1/2-1/2"]
[ECO "D43"]
[WhiteElo "1710"]
[BlackElo "1488"]
[Annotator "NA RC"]
[PlyCount "96"]
[EventDate "2018.12.30"]
[EventType "swiss"]
[EventCountry "IND"]
[SourceTitle "playchess.com"]
[Source "ChessBase"]
[SourceQuality "1"]
[TimeControl "40/5400+30:1800+30"]

1. d4 {[%emt 0:00:00]} c6 {[%emt 0:00:00]} 2. c4 {[%emt 0:00:00]} d5 {[%emt 0:00:00]} 3. Nf3 {[%emt 0:00:00]} Nf6 {[%emt 0:00:04]} 4. Nc3 {[%emt 0:00:07]} e6 {[%emt 0:00:07]} 5. Bg5 {[%emt 0:00:09]} Be7 {[%emt 0:00:19]} 6. e3 {[%emt 0:00:18]} O-O {[%emt 0:01:20]} 7. Bd3 {[%emt 0:00:35]} dxc4 {[%emt 0:01:57]} 8. Bxc4 {[%emt 0:00:03]} b5 {[%emt 0:01:00]} 9. Bd3 {[%emt 0:00:09]} Bb7 {[%emt 0:00:12]} 10. O-O {[%emt 0:01:42]} Nbd7 {[%emt 0:05:58]} 11. Rc1 {[%emt 0:03:14]} a6 {[%emt 0:02:46]} 12. a4 {[%emt 0:00:30]} Rc8 {[%emt 0:16:38]} 13. Qe2 {[%emt 0:02:59]} b4 {[%emt 0:12:45]} 14. Ne4 {[%emt 0:06:03]} Nxe4 {[%emt 0:22:06]} 15. Bxe7 {[%emt 0:00:34]} Qxe7 {[%emt 0:00:02]} 16. Bxe4 {[%emt 0:00:02]} e5 {[%emt 0:03:25]} 17. dxe5 {[%emt 0:19:32]} Nxe5 {[%emt 0:00:18]} 18. Nd4 {[%emt 0:01:55]} a5 {[%emt 0:17:00]} 19. Nf5 {[%emt 0:10:22]} Qf6 {[%emt 0:00:38]} 20. Ng3 {[%emt 0:06:35]} Qe7 {[%emt 0:02:32]} 21. Rfd1 {[%emt 0:02:37]} Rfd8 {[%emt 0:00:57]} 22. Qc2 {[%emt 0:01:21]} g6 {[%emt 0:00:36]} 23. h3 {[%emt 0:01:20]} f5 {[%emt 0:05:33]} 24. Bd3 {[%emt 0:01:31]} Nxd3 {[%emt 0:01:15]} 25. Rxd3 {[%emt 0:00:02]} c5 {[%emt 0:01:21]} 26. Qc4+ {[%emt 0:00:27]} Kf8 {[%emt 0:00:52]} 27. Rcd1 {[%emt 0:03:06]} Rxd3 {[%emt 0:01:28]} 28. Rxd3 {[%emt 0:00:06]} Bc6 {[%emt 0:01:20]} 29. b3 {[%emt 0:00:36]} Be4 {[%emt 0:00:43]} 30. Nxe4 {[%emt 0:01:11]} Qxe4 {[%emt 0:00:19]} 31. Qa6 {[%emt 0:00:31]} Ra8 {[%emt 0:00:31]} 32. Qd6+ {[%emt 0:01:10]} Qe7 {[%emt 0:00:14]} 33. Qc6 {[%emt 0:00:16]} Ra7 {[%emt 0:00:18]} 34. Qc8+ {[%emt 0:00:29]} Kg7 {[%emt 0:00:40]} 35. Qc6 {[%emt 0:03:01]} Qc7 {[%emt 0:00:37]} 36. Qd5 {[%emt 0:01:22]} Qe7 {[%emt 0:00:14]} 37. f3 {[%emt 0:02:27]} Rc7 {[%emt 0:00:55]} 38. e4 {[%emt 0:00:10]} fxe4 {[%emt 0:00:54]} 39. fxe4 {[%emt 0:00:01]} c4 {[%emt 0:00:59]} 40. bxc4 {[%emt 0:00:00]} Qc5+ {[%emt 0:00:00]} 41. Kh2 {[%emt 0:01:08]} Qxc4 {[%emt 0:07:16]} 42. Qe5+ {[%emt 0:00:22]} Kh6 {[%emt 0:10:56]} 43. Qf4+ {[%emt 0:03:25]} Kg7 {[%emt 0:00:06]} 44. Qe5+ {[%emt 0:00:57]} Kh6 {[%emt 0:00:08]} 45. Qf4+ {[%emt 0:02:43]} Kg7 {[%emt 0:00:06]} 46. Qe5+ {[%emt 0:00:48]} Kh6 {[%emt 0:00:06]} 47. Qf4+ {[%emt 0:04:43]} Kg7 {[%emt 0:00:16]} 48. Qe5+ {[%emt 0:00:07]} Kh6 1/2-1/2

[Event "IIFL Wealth  4th Mumbai Junior U-13"]
[Site "Mumbai"]
[Date "2019.01.02"]
[Round "4"]
[White "Pawar, Harshit"]
[Black "Daakshin Arun"]
[Result "1-0"]
[ECO "B20"]
[WhiteElo "1671"]
[BlackElo "1400"]
[Annotator "NA RC"]
[PlyCount "149"]
[EventDate "2018.12.30"]
[EventType "swiss"]
[EventCountry "IND"]
[SourceTitle "playchess.com"]
[Source "ChessBase"]
[SourceQuality "1"]
[TimeControl "40/5400+30:1800+30"]

1. e4 {[%emt 0:00:00]} c5 {[%emt 0:00:00]} 2. a3 {[%emt 0:00:01]} d6 {[%emt 0:00:00]} 3. b4 {[%emt 0:03:57]} cxb4 {[%emt 0:00:08]} 4. axb4 {[%emt 0:01:47]} Nf6 {[%emt 0:00:06]} 5. d3 {[%emt 0:01:49]} Qb6 {[%emt 0:01:26]} 6. c3 {[%emt 0:02:29]} g6 {[%emt 0:01:40]} 7. Be3 {[%emt 0:02:28]} Qc7 {[%emt 0:01:39]} 8. h3 {[%emt 0:03:28]} b6 {[%emt 0:00:47]} 9. Nf3 {[%emt 0:02:37]} Bg7 {[%emt 0:00:19]} 10. Be2 {[%emt 0:01:26]} O-O {[%emt 0:01:09]} 11. O-O {[%emt 0:02:13]} Bb7 {[%emt 0:00:54]} 12. Qd2 {[%emt 0:02:26]} Rd8 {[%emt 0:00:25]} 13. Na3 {[%emt 0:03:05]} a6 {[%emt 0:01:46]} 14. Rab1 {[%emt 0:05:13]} Nbd7 {[%emt 0:02:28]} 15. Rfc1 {[%emt 0:03:38]} Rac8 {[%emt 0:01:33]} 16. c4 {[%emt 0:03:20]} Ba8 {[%emt 0:06:11]} 17. Rc2 {[%emt 0:03:05]} Qa7 {[%emt 0:02:53]} 18. Bd4 {[%emt 0:05:55]} e5 {[%emt 0:04:33]} 19. Be3 {[%emt 0:02:30]} Kh8 {[%emt 0:02:02]} 20. Bh6 {[%emt 0:04:36]} Kg8 {[%emt 0:01:12]} 21. Bg5 {[%emt 0:03:52]} Kh8 {[%emt 0:00:56]} 22. g3 {[%emt 0:01:43]} Kg8 {[%emt 0:01:13]} 23. Kg2 {[%emt 0:00:55]} h5 {[%emt 0:01:11]} 24. Be3 Kh8 25. Ng5 {[%emt 0:04:26]} Kg8 {[%emt 0:01:03]} 26. h4 {[%emt 0:01:08]} Kf8 {[%emt 0:01:33]} 27. f3 {[%emt 0:01:23]} Kg8 {[%emt 0:00:32]} 28. Kh2 {[%emt 0:01:07]} Kf8 {[%emt 0:00:22]} 29. Rf1 {[%emt 0:01:27]} Ke7 {[%emt 0:01:06]} 30. Rd1 {[%emt 0:01:32]} Kf8 {[%emt 0:03:03]} 31. Bf1 {[%emt 0:02:24]} Ke7 {[%emt 0:02:31]} 32. Bh3 {[%emt 0:00:46]} Bh6 {[%emt 0:02:24]} 33. Qf2 {[%emt 0:01:54]} Rc7 {[%emt 0:02:24]} 34. Kg1 {[%emt 0:01:26]} Rdc8 {[%emt 0:01:20]} 35. Rcd2 {[%emt 0:01:08]} Rd8 {[%emt 0:00:32]} 36. d4 {[%emt 0:03:33]} Bg7 {[%emt 0:01:54]} 37. dxe5 {[%emt 0:01:04]} Nxe5 {[%emt 0:01:09]} 38. Bxb6 {[%emt 0:01:12]} Qb7 {[%emt 0:00:50]} 39. Bxc7 {[%emt 0:02:00]} Qxc7 {[%emt 0:00:15]} 40. c5 {[%emt 0:00:00]} d5 {[%emt 0:00:00]} 41. Bg2 {[%emt 0:03:51]} Bc6 {[%emt 0:02:33]} 42. Nb1 {[%emt 0:01:42]} Nc4 {[%emt 0:04:48]} 43. exd5 {[%emt 0:04:35]} Bxd5 {[%emt 0:00:14]} 44. Rd3 {[%emt 0:05:31]} Kf8 {[%emt 0:00:29]} 45. Nc3 {[%emt 0:01:36]} Qe5 {[%emt 0:02:25]} 46. f4 {[%emt 0:04:51]} Qf5 {[%emt 0:00:19]} 47. Nxd5 {[%emt 0:00:48]} Ng4 {[%emt 0:00:24]} 48. Qe2 {[%emt 0:01:26]} Re8 {[%emt 0:00:48]} 49. Nh7+ {[%emt 0:01:03]} Kg8 {[%emt 0:00:28]} 50. Qxe8+ {[%emt 0:00:36]} Kxh7 {[%emt 0:00:10]} 51. Be4 {[%emt 0:00:25]} Qe6 {[%emt 0:00:25]} 52. Qxe6 {[%emt 0:00:56]} fxe6 {[%emt 0:00:07]} 53. Ne7 {[%emt 0:00:24]} Nb2 {[%emt 0:00:07]} 54. Nxg6 {[%emt 0:00:31]} Nxd3 {[%emt 0:00:11]} 55. Bxd3 {[%emt 0:00:33]} Bd4+ {[%emt 0:00:34]} 56. Kf1 {[%emt 0:00:16]} Ne3+ {[%emt 0:00:14]} 57. Ke2 {[%emt 0:00:06]} Nxd1 {[%emt 0:00:06]} 58. Kxd1 {[%emt 0:00:04]} Kg7 {[%emt 0:00:09]} 59. c6 {[%emt 0:00:05]} Bb6 {[%emt 0:00:03]} 60. Ne5 {[%emt 0:00:06]} Bc7 {[%emt 0:00:07]} 61. Bxa6 {[%emt 0:00:32]} Kf6 {[%emt 0:00:08]} 62. b5 {[%emt 0:00:18]} Ke7 {[%emt 0:00:10]} 63. Nc4 {[%emt 0:00:10]} Kd8 {[%emt 0:00:12]} 64. Bb7 {[%emt 0:00:26]} Bb8 {[%emt 0:00:17]} 65. b6 {[%emt 0:00:06]} Bc7 {[%emt 0:00:07]} 66. bxc7+ {[%emt 0:00:24]} Kxc7 {[%emt 0:00:11]} 67. Ke1 {[%emt 0:00:09]} Kb8 {[%emt 0:00:22]} 68. Kf1 {[%emt 0:00:06]} e5 {[%emt 0:00:04]} 69. f5 {[%emt 0:00:06]} e4 {[%emt 0:00:06]} 70. f6 {[%emt 0:00:06]} e3 {[%emt 0:00:05]} 71. f7 {[%emt 0:00:08]} e2+ {[%emt 0:00:02]} 72. Ke1 {[%emt 0:00:05]} Ka7 {[%emt 0:00:03]} 73. g4 {[%emt 0:00:10]} hxg4 {[%emt 0:00:12]} 74. f8=Q {[%emt 0:00:07]} g3 {[%emt 0:00:05]} 75. Qa8# 1-0

[Event "IIFL Wealth  4th Mumbai Junior U-13"]
[Site "Mumbai"]
[Date "2019.01.02"]
[Round "4"]
[White "Mahajan Ayush"]
[Black "Aggarwal Vansh"]
[Result "1/2-1/2"]
[ECO "C45"]
[WhiteElo "1629"]
[BlackElo "1328"]
[Annotator "NA"]
[PlyCount "66"]
[EventDate "2018.12.30"]
[EventType "swiss"]
[EventCountry "IND"]
[SourceTitle "playchess.com"]
[Source "ChessBase"]
[SourceQuality "1"]
[TimeControl "40/5400+30:1800+30"]

1. e4 {[%emt 0:00:00]} e5 {[%emt 0:00:00]} 2. Nf3 {[%emt 0:00:10]} Nc6 {[%emt 0:00:11]} 3. d4 {[%emt 0:03:18]} exd4 {[%emt 0:00:28]} 4. Nxd4 {[%emt 0:00:11]} Bc5 {[%emt 0:00:27]} 5. Nb3 {[%emt 0:00:15]} Bb6 {[%emt 0:02:05]} 6. Qe2 {[%emt 0:00:48]} d6 {[%emt 0:01:33]} 7. Nc3 {[%emt 0:00:49]} Nge7 {[%emt 0:03:22]} 8. Be3 {[%emt 0:01:23]} Be6 {[%emt 0:01:34]} 9. O-O-O {[%emt 0:00:45]} Qd7 {[%emt 0:02:09]} 10. h3 {[%emt 0:03:02]} O-O-O {[%emt 0:02:33]} 11. Bxb6 {[%emt 0:02:02]} axb6 {[%emt 0:00:51]} 12. f4 {[%emt 0:00:18]} f6 {[%emt 0:03:21]} 13. Qf2 {[%emt 0:01:34]} Qe8 {[%emt 0:05:45]} 14. Bb5 {[%emt 0:02:19]} Qf7 {[%emt 0:03:56]} 15. Rhe1 {[%emt 0:07:49]} Rhe8 {[%emt 0:08:05]} 16. Qf1 {[%emt 0:09:06]} Qf8 {[%emt 0:16:15]} 17. Kb1 {[%emt 0:17:16]} Kb8 {[%emt 0:01:09]} 18. Bc4 {[%emt 0:22:19]} Qf7 {[%emt 0:02:23]} 19. Bb5 {[%emt 0:01:41]} Qf8 {[%emt 0:00:19]} 20. Nd5 {[%emt 0:04:00]} Bd7 {[%emt 0:01:52]} 21. Nxe7 {[%emt 0:01:48]} Rxe7 {[%emt 0:00:44]} 22. Nd4 {[%emt 0:01:58]} Rde8 {[%emt 0:03:43]} 23. Nxc6+ {[%emt 0:08:57]} Bxc6 {[%emt 0:00:44]} 24. Bxc6 {[%emt 0:00:22]} bxc6 {[%emt 0:00:02]} 25. Qc4 {[%emt 0:02:05]} Kb7 {[%emt 0:00:17]} 26. Rd4 {[%emt 0:05:45]} Qf7 {[%emt 0:01:07]} 27. Qd3 {[%emt 0:00:09]} d5 {[%emt 0:02:33]} 28. Ka1 {[%emt 0:02:03]} Kb8 {[%emt 0:00:06]} 29. Kb1 {[%emt 0:00:04]} Kb7 {[%emt 0:00:06]} 30. Ka1 {[%emt 0:00:05]} Kb8 {[%emt 0:00:02]} 31. Kb1 {[%emt 0:00:07]} Kb7 {[%emt 0:00:00]} 32. Ka1 {[%emt 0:00:19]} Kb8 {[%emt 0:00:00]} 33. Kb1 Kb7 1/2-1/2

[Event "IIFL Wealth  4th Mumbai Junior U-13"]
[Site "Mumbai"]
[Date "2019.01.02"]
[Round "4"]
[White "Akshit Jha"]
[Black "Anurag Panigrahi"]
[Result "1-0"]
[ECO "B54"]
[WhiteElo "1604"]
[BlackElo "1315"]
[Annotator "NA"]
[PlyCount "55"]
[EventDate "2018.12.30"]
[EventType "swiss"]
[EventCountry "IND"]
[SourceTitle "playchess.com"]
[Source "ChessBase"]
[SourceQuality "1"]
[TimeControl "40/5400+30:1800+30"]

1. e4 {[%emt 0:18:47]} c5 {[%emt 0:00:00]} 2. Nf3 {[%emt 0:00:06]} d6 {[%emt 0:00:00]} 3. d4 {[%emt 0:00:06]} cxd4 {[%emt 0:00:00]} 4. Nxd4 {[%emt 0:00:03]} Nf6 {[%emt 0:00:04]} 5. f3 {[%emt 0:00:04]} a6 {[%emt 0:00:21]} 6. c4 {[%emt 0:00:08]} e6 {[%emt 0:02:45]} 7. Nc3 {[%emt 0:00:05]} Be7 {[%emt 0:00:30]} 8. Be3 {[%emt 0:00:07]} O-O {[%emt 0:01:56]} 9. Be2 {[%emt 0:00:38]} Qc7 {[%emt 0:04:14]} 10. O-O {[%emt 0:00:23]} Nc6 {[%emt 0:00:40]} 11. Rc1 {[%emt 0:00:31]} Rd8 {[%emt 0:05:30]} 12. Nd5 {[%emt 0:10:39]} exd5 {[%emt 0:08:02]} 13. cxd5 {[%emt 0:00:10]} Bd7 {[%emt 0:05:14]} 14. dxc6 {[%emt 0:00:22]} bxc6 {[%emt 0:08:23]} 15. Bc4 {[%emt 0:02:47]} Rab8 {[%emt 0:06:17]} 16. Rf2 {[%emt 0:03:44]} d5 {[%emt 0:04:34]} 17. exd5 {[%emt 0:00:35]} cxd5 {[%emt 0:00:10]} 18. Bxa6 {[%emt 0:05:26]} Qa5 {[%emt 0:06:04]} 19. Bd3 {[%emt 0:00:55]} Qxa2 {[%emt 0:01:43]} 20. Ra1 {[%emt 0:00:44]} Ba4 {[%emt 0:04:55]} 21. Qf1 {[%emt 0:01:47]} Qxa1 {[%emt 0:01:52]} 22. Qxa1 {[%emt 0:00:48]} Ra8 {[%emt 0:00:16]} 23. Qe1 {[%emt 0:00:41]} Re8 {[%emt 0:00:35]} 24. Re2 {[%emt 0:00:35]} Bc5 {[%emt 0:00:55]} 25. Bf2 {[%emt 0:00:43]} Bxd4 {[%emt 0:02:00]} 26. Bxd4 {[%emt 0:00:48]} Re6 27. Re3 Rxe3 {[%emt 0:01:16]} 28. Qe2 {[%emt 0:00:40]} 1-0

[Event "IIFL Wealth  4th Mumbai Junior U-13"]
[Site "Mumbai"]
[Date "2019.01.02"]
[Round "4"]
[White "Tejes Suresh Kumar"]
[Black "Sohanganesh Uddhav Nikam"]
[Result "1-0"]
[ECO "B01"]
[WhiteElo "1586"]
[BlackElo "1299"]
[Annotator "NA"]
[PlyCount "41"]
[EventDate "2018.12.30"]
[EventType "swiss"]
[EventCountry "IND"]
[SourceTitle "playchess.com"]
[Source "ChessBase"]
[SourceQuality "1"]
[TimeControl "40/5400+30:1800+30"]

1. e4 d5 2. exd5 Qxd5 3. Nc3 Qa5 4. Bc4 Bf5 5. d3 c6 6. Bd2 Qc7 7. Nf3 Nf6 8. O-O e6 9. Re1 Bd6 10. h3 h6 11. Qe2 O-O 12. Ne4 Be7 13. Ng3 Re8 14. Nxf5 exf5 15. Bxf7+ Kxf7 16. Qe6+ Kg6 17. Qxf5+ Kf7 18. Nh4 Kg8 19. Qg6 Kf8 20. Nf5 Bd6 21. Bxh6 1-0

[Event "IIFL Wealth  4th Mumbai Junior U-13"]
[Site "Mumbai"]
[Date "2019.01.02"]
[Round "4"]
[White "Pingale Shivraj"]
[Black "Sai Mahati A"]
[Result "1-0"]
[ECO "C25"]
[WhiteElo "1580"]
[BlackElo "1267"]
[Annotator "NA"]
[PlyCount "63"]
[EventDate "2018.12.30"]
[EventType "swiss"]
[EventCountry "IND"]
[SourceTitle "playchess.com"]
[Source "ChessBase"]
[SourceQuality "1"]
[TimeControl "40/5400+30:1800+30"]

1. e4 {[%emt 0:00:00]} e5 {[%emt 0:14:09]} 2. Nc3 {[%emt 0:00:00]} Nc6 {[%emt 0:00:45]} 3. f4 {[%emt 0:00:00]} d6 {[%emt 0:02:29]} 4. Nf3 {[%emt 0:00:00]} Bg4 {[%emt 0:01:27]} 5. Bb5 {[%emt 0:01:29]} Nge7 {[%emt 0:03:40]} 6. O-O {[%emt 0:00:38]} a6 {[%emt 0:01:28]} 7. Bc4 {[%emt 0:01:46]} Be6 {[%emt 0:08:56]} 8. Bxe6 {[%emt 0:01:22]} fxe6 {[%emt 0:00:08]} 9. fxe5 {[%emt 0:01:11]} dxe5 {[%emt 0:00:28]} 10. Ng5 {[%emt 0:00:46]} Qd7 {[%emt 0:03:07]} 11. Qh5+ {[%emt 0:11:11]} g6 {[%emt 0:07:25]} 12. Qf3 {[%emt 0:00:39]} Bh6 {[%emt 0:06:55]} 13. Qf7+ {[%emt 0:01:53]} Kd8 {[%emt 0:00:11]} 14. Nxe6+ {[%emt 0:00:10]} Kc8 {[%emt 0:00:11]} 15. d3 {[%emt 0:08:35]} Bxc1 {[%emt 0:04:04]} 16. Raxc1 {[%emt 0:01:43]} Nd4 {[%emt 0:08:19]} 17. Nxd4 {[%emt 0:04:39]} Qxd4+ {[%emt 0:00:14]} 18. Kh1 {[%emt 0:00:11]} Qd7 {[%emt 0:04:06]} 19. Qg7 {[%emt 0:01:39]} Re8 {[%emt 0:00:44]} 20. Rf7 {[%emt 0:00:41]} Qd6 {[%emt 0:01:26]} 21. Rcf1 {[%emt 0:02:33]} b6 {[%emt 0:00:48]} 22. Qf6 {[%emt 0:03:56]} h5 {[%emt 0:06:11]} 23. Qxd6 {[%emt 0:01:55]} cxd6 {[%emt 0:00:07]} 24. Kg1 {[%emt 0:02:20]} Kd8 {[%emt 0:04:01]} 25. R1f6 {[%emt 0:01:16]} Kd7 {[%emt 0:01:16]} 26. Nd5 {[%emt 0:00:22]} Rab8 {[%emt 0:00:31]} 27. Rxg6 {[%emt 0:00:36]} Kd8 {[%emt 0:02:17]} 28. Rxd6+ {[%emt 0:00:32]} Kc8 {[%emt 0:00:29]} 29. Rxe7 {[%emt 0:00:38]} Rxe7 {[%emt 0:00:11]} 30. Nxe7+ {[%emt 0:00:05]} Kc7 {[%emt 0:00:11]} 31. Rh6 {[%emt 0:00:17]} Kd7 {[%emt 0:00:35]} 32. Nd5 {[%emt 0:00:08]} 1-0

[Event "IIFL Wealth  4th Mumbai Junior U-13"]
[Site "Mumbai"]
[Date "2019.01.02"]
[Round "4"]
[White "Vedant Nitin vekhande"]
[Black "Vishal Shewale"]
[Result "0-1"]
[ECO "B92"]
[WhiteElo "1564"]
[BlackElo "1287"]
[Annotator "NA"]
[PlyCount "92"]
[EventDate "2018.12.30"]
[EventType "swiss"]
[EventCountry "IND"]
[SourceTitle "playchess.com"]
[Source "ChessBase"]
[SourceQuality "1"]
[TimeControl "40/5400+30:1800+30"]

1. e4 {[%emt 0:03:46]} c5 {[%emt 0:00:00]} 2. Nf3 {[%emt 0:00:05]} d6 {[%emt 0:00:00]} 3. d4 {[%emt 0:00:05]} cxd4 {[%emt 0:00:00]} 4. Nxd4 {[%emt 0:00:03]} Nf6 {[%emt 0:00:04]} 5. Nc3 {[%emt 0:00:07]} a6 {[%emt 0:00:08]} 6. Be2 {[%emt 0:00:06]} e5 {[%emt 0:00:08]} 7. Nb3 {[%emt 0:00:04]} Be6 {[%emt 0:00:13]} 8. O-O {[%emt 0:00:09]} Be7 {[%emt 0:01:50]} 9. Kh1 {[%emt 0:00:17]} Nbd7 {[%emt 0:02:33]} 10. f4 {[%emt 0:00:11]} exf4 {[%emt 0:00:11]} 11. Bxf4 {[%emt 0:00:07]} Ne5 {[%emt 0:00:08]} 12. Nd4 {[%emt 0:01:31]} Qc7 {[%emt 0:08:16]} 13. Bxe5 {[%emt 0:00:52]} dxe5 {[%emt 0:00:09]} 14. Nxe6 {[%emt 0:00:06]} fxe6 {[%emt 0:00:09]} 15. a3 {[%emt 0:06:14]} O-O {[%emt 0:03:55]} 16. Qd3 {[%emt 0:05:55]} Rac8 {[%emt 0:14:52]} 17. Rad1 {[%emt 0:00:54]} Bc5 {[%emt 0:00:12]} 18. Qh3 {[%emt 0:00:53]} Qc6 {[%emt 0:07:02]} 19. Bc4 {[%emt 0:01:12]} Rce8 {[%emt 0:01:16]} 20. Be2 {[%emt 0:07:38]} Bd4 {[%emt 0:05:42]} 21. Rd3 {[%emt 0:04:54]} Re7 {[%emt 0:02:54]} 22. Rdf3 {[%emt 0:04:09]} Bxc3 {[%emt 0:09:16]} 23. Rxc3 {[%emt 0:08:48]} Qxe4 {[%emt 0:00:13]} 24. Bd3 {[%emt 0:00:08]} Qd4 {[%emt 0:00:19]} 25. Rb3 {[%emt 0:03:08]} Ne4 {[%emt 0:02:52]} 26. Rxf8+ {[%emt 0:00:49]} Kxf8 {[%emt 0:00:07]} 27. Qf3+ {[%emt 0:01:34]} Rf7 {[%emt 0:00:07]} 28. Bxe4 {[%emt 0:00:42]} Rxf3 {[%emt 0:00:13]} 29. gxf3 {[%emt 0:00:10]} Qf2 {[%emt 0:00:30]} 30. h3 {[%emt 0:00:13]} h5 {[%emt 0:05:04]} 31. Rxb7 {[%emt 0:00:36]} h4 {[%emt 0:00:31]} 32. Rb8+ {[%emt 0:06:59]} Kf7 {[%emt 0:00:27]} 33. Rb3 {[%emt 0:03:35]} Qg3 {[%emt 0:02:32]} 34. Bb7 {[%emt 0:00:14]} Qxh3+ {[%emt 0:00:11]} 35. Kg1 {[%emt 0:00:06]} Qg3+ {[%emt 0:00:12]} 36. Kh1 {[%emt 0:00:04]} Kg6 {[%emt 0:02:29]} 37. f4 {[%emt 0:00:51]} Qe1+ {[%emt 0:01:17]} 38. Kg2 {[%emt 0:00:51]} Qe2+ {[%emt 0:01:08]} 39. Kh3 {[%emt 0:00:11]} exf4 {[%emt 0:00:32]} 40. Bf3 {[%emt 0:00:00]} Qf2 {[%emt 0:00:00]} 41. Be4+ {[%emt 0:05:50]} Kg5 {[%emt 0:00:43]} 42. Rf3 {[%emt 0:00:34]} Qg1 {[%emt 0:00:07]} 43. Rc3 {[%emt 0:00:38]} f3 {[%emt 0:00:33]} 44. Rc5+ {[%emt 0:00:42]} Qxc5 {[%emt 0:00:08]} 45. Bxf3 {[%emt 0:00:04]} Qf2 {[%emt 0:00:06]} 46. Bg2 {[%emt 0:00:06]} Qg3# {[%emt 0:00:05]} 0-1

[Event "IIFL Wealth  4th Mumbai Junior U-13"]
[Site "Mumbai"]
[Date "2019.01.02"]
[Round "4"]
[White "Bharadia Yash"]
[Black "Sneha Halder"]
[Result "1-0"]
[ECO "B13"]
[WhiteElo "1559"]
[BlackElo "1282"]
[Annotator "NA"]
[PlyCount "131"]
[EventDate "2018.12.30"]
[EventType "swiss"]
[EventCountry "IND"]
[SourceTitle "playchess.com"]
[Source "ChessBase"]
[SourceQuality "1"]
[TimeControl "40/5400+30:1800+30"]

1. e4 {[%emt 0:00:00]} c6 {[%emt 0:00:00]} 2. d4 {[%emt 0:00:00]} d5 {[%emt 0:00:36]} 3. exd5 {[%emt 0:00:00]} cxd5 {[%emt 0:00:09]} 4. Bd3 {[%emt 0:00:00]} e6 {[%emt 0:00:14]} 5. c3 {[%emt 0:00:50]} Nf6 {[%emt 0:01:09]} 6. Bf4 {[%emt 0:00:47]} Bd6 {[%emt 0:00:35]} 7. Bxd6 {[%emt 0:00:27]} Qxd6 {[%emt 0:00:09]} 8. Nf3 {[%emt 0:00:11]} Nc6 {[%emt 0:01:41]} 9. O-O {[%emt 0:01:08]} O-O {[%emt 0:00:34]} 10. Re1 {[%emt 0:00:32]} Nd7 {[%emt 0:01:42]} 11. Qc2 {[%emt 0:01:48]} g6 {[%emt 0:00:32]} 12. Nbd2 {[%emt 0:07:16]} Nb6 {[%emt 0:00:43]} 13. Ne5 {[%emt 0:01:46]} Nxe5 {[%emt 0:00:47]} 14. dxe5 {[%emt 0:00:11]} Qe7 {[%emt 0:01:56]} 15. Nf3 {[%emt 0:00:28]} Bd7 {[%emt 0:00:42]} 16. Qd2 {[%emt 0:06:16]} Kg7 {[%emt 0:01:40]} 17. Nd4 {[%emt 0:01:40]} Na4 {[%emt 0:01:03]} 18. f4 {[%emt 0:00:24]} Nc5 {[%emt 0:00:11]} 19. Re3 {[%emt 0:00:54]} Nxd3 {[%emt 0:00:27]} 20. Rxd3 {[%emt 0:00:57]} Rh8 {[%emt 0:01:04]} 21. Rh3 {[%emt 0:01:09]} h6 {[%emt 0:00:48]} 22. Kh1 {[%emt 0:07:35]} Rac8 {[%emt 0:00:48]} 23. g4 {[%emt 0:05:56]} g5 {[%emt 0:18:33]} 24. Rh5 {[%emt 0:07:53]} Kg6 {[%emt 0:01:06]} 25. Qd3+ {[%emt 0:15:42]} Kg7 {[%emt 0:00:24]} 26. Qe3 {[%emt 0:02:37]} Kg6 {[%emt 0:00:37]} 27. Nf3 {[%emt 0:01:24]} gxf4 {[%emt 0:08:03]} 28. Qxf4 {[%emt 0:01:45]} Rc4 {[%emt 0:01:08]} 29. Nd4 {[%emt 0:01:14]} Kg7 {[%emt 0:01:06]} 30. Rf1 {[%emt 0:02:13]} b5 {[%emt 0:00:52]} 31. Qe3 {[%emt 0:03:31]} Rcc8 {[%emt 0:04:05]} 32. Rf6 {[%emt 0:02:03]} Rh7 {[%emt 0:01:04]} 33. Rhxh6 {[%emt 0:14:00]} Rch8 {[%emt 0:00:55]} 34. Rxh7+ {[%emt 0:03:50]} Rxh7 {[%emt 0:00:16]} 35. Nf3 {[%emt 0:00:31]} Bc6 {[%emt 0:00:36]} 36. Qd4 {[%emt 0:00:57]} Kg8 {[%emt 0:00:51]} 37. Kg2 {[%emt 0:02:51]} Qf8 {[%emt 0:04:53]} 38. Qxa7 {[%emt 0:01:57]} d4 {[%emt 0:00:42]} 39. Qxd4 {[%emt 0:00:11]} Bxf3+ {[%emt 0:00:14]} 40. Rxf3 {[%emt 0:00:00]} Qa8 {[%emt 0:00:00]} 41. Qd3 {[%emt 0:04:10]} Qxa2 {[%emt 0:04:42]} 42. Qxb5 {[%emt 0:00:12]} Rg7 {[%emt 0:00:51]} 43. h3 {[%emt 0:01:26]} Qb1 {[%emt 0:00:30]} 44. Qe2 {[%emt 0:00:43]} Qa2 {[%emt 0:01:20]} 45. Rd3 {[%emt 0:04:33]} Qa8+ {[%emt 0:00:17]} 46. Kh2 {[%emt 0:00:37]} Qa4 {[%emt 0:00:43]} 47. Rd8+ {[%emt 0:03:04]} Kh7 {[%emt 0:00:08]} 48. Rd4 {[%emt 0:03:28]} Qa2 {[%emt 0:00:23]} 49. Qc2+ {[%emt 0:01:06]} Rg6 {[%emt 0:00:20]} 50. Rd7 {[%emt 0:00:48]} Kg8 {[%emt 0:00:37]} 51. Qf2 {[%emt 0:01:19]} Rg7 {[%emt 0:00:09]} 52. Rd8+ {[%emt 0:00:29]} Kh7 {[%emt 0:00:09]} 53. Rf8 {[%emt 0:02:12]} Qd5 {[%emt 0:01:15]} 54. Qc2+ {[%emt 0:01:21]} Rg6 {[%emt 0:01:42]} 55. Rxf7+ {[%emt 0:00:57]} Kh8 {[%emt 0:00:06]} 56. Rf8+ {[%emt 0:04:45]} Kg7 {[%emt 0:00:41]} 57. Rg8+ {[%emt 0:00:23]} Kxg8 {[%emt 0:00:09]} 58. Qxg6+ {[%emt 0:00:03]} Kf8 {[%emt 0:00:12]} 59. Qf6+ {[%emt 0:00:08]} Kg8 {[%emt 0:00:13]} 60. Kg3 {[%emt 0:00:50]} Qd3+ {[%emt 0:01:18]} 61. Kh4 {[%emt 0:00:25]} Qh7+ {[%emt 0:02:05]} 62. Kg5 {[%emt 0:00:25]} Qxh3 {[%emt 0:00:18]} 63. Qxe6+ {[%emt 0:00:10]} Kg7 {[%emt 0:01:12]} 64. Qg6+ {[%emt 0:00:06]} Kf8 {[%emt 0:01:34]} 65. Qh6+ {[%emt 0:00:01]} Qxh6+ {[%emt 0:00:12]} 66. Kxh6 1-0